Cogmind - Beta 9.6 @@@ ROGUE MODE // 2020.07.26 @ 23:10:35 Player: Phillammon Result: Destroyed by Y-45 Defender with Heavy Assault Rifle Performance ------------- Evolutions (2) 1000 Regions Visited (5) 1000 Robots Destroyed (27) 135 Value Destroyed (796) 796 Prototype IDs (24) 480 Alien Tech Used (0) 0 Bonus (198) 198 TOTAL SCORE: 3609 Bonus ------- Follower Combat Kills 14 Aligned with FarCom 300 Friendly Fire -116 Cogmind --------- Core Integrity 0/550 Matter 260/300 Energy 99/100 System Corruption 3% Temperature Cool (0) Movement Core (150) Ox2 Location -8/Materials Parts ------- > --- POWER (1) -------- (None) > --- PROPULSION (3) --- Faulty Improved VTOL Module > --- UTILITY (5) ------ Medium Storage Unit Improved Signal Interpreter Improved Signal Interpreter Advanced Signal Interpreter > --- WEAPON (2) ------- (None) > --- INVENTORY (8) ---- Latent Energy Streamer Mining Laser Peak State ------------ > --- POWER ------------ Light Nuclear Core > --- PROPULSION ------- Carbon-fiber Leg Carbon-fiber Leg Carbon-fiber Leg > --- UTILITY ---------- Medium Storage Unit Improved Signal Interpreter Improved Signal Interpreter Advanced Signal Interpreter Improved ECM Suite > --- WEAPON ----------- Latent Energy Streamer High-powered Shotgun > --- INVENTORY -------- Light Ion Engine Cesium-ion Thruster Cesium-ion Thruster Cesium-ion Thruster Cesium-ion Thruster Improved VTOL Module Light Assault Rifle Mining Laser [Rating: 37] Favorites ----------- Power Ion Engine Engine Ion Engine Power Core Light Nuclear Core Propulsion Wheel Treads Light Treads Leg Carbon-fiber Leg Wheel Wheel Flight Unit Cesium-ion Thruster Utility Medium Storage Unit Device Improved ECM Suite Storage Medium Storage Unit Processor Improved Signal Interpreter Weapon Light Assault Rifle Energy Gun Medium Laser Energy Cannon Latent Energy Streamer Ballistic Gun Light Assault Rifle Build | -11 -10 -10 -10 -9 -8 ------- Run | Scr Mat Min Exi Min Mat Slots Evolved 4 | . . . . . 4 Power . | . . . . . . Propulsion 1 | . . . . . 1 Utility 3 | . . . . . 3 Weapon . | . . . . . . Parts Attached 39 | 2 . . 2 9 26 Power 6 | . . . . 2 4 Engine 4 | . . . . 2 2 Core 2 | . . . . . 2 Reactor . | . . . . . . Propulsion 16 | 2 . . . 2 12 Treads 2 | 1 . . . . 1 Leg 7 | . . . . . 7 Wheel 3 | 1 . . . 2 . Hover . | . . . . . . Flight 4 | . . . . . 4 Utility 5 | . . . 1 . 4 Device 1 | . . . . . 1 Storage 1 | . . . 1 . . Processor 3 | . . . . . 3 Hackware . | . . . . . . Protection . | . . . . . . Artifact . | . . . . . . Weapon 12 | . . . 1 5 6 Energy Gun 2 | . . . . . 2 Energy Cannon 3 | . . . 1 1 1 Ballistic Gun 7 | . . . . 4 3 Ballistic Cannon . | . . . . . . Launcher . | . . . . . . Special Weapon . | . . . . . . Impact Weapon . | . . . . . . Slashing Weapon . | . . . . . . Piercing Weapon . | . . . . . . Special Melee Weapon . | . . . . . . Unidentified Prototypes 1 | . . . . . 1 Parts Lost 20 | . 1 . . 5 14 Power 5 | . . . . 2 3 Propulsion 7 | . . . . 2 5 Utility 1 | . . . . . 1 Weapon 7 | . 1 . . 1 5 Highest Loss Streak 8 | . 1 . . 3 8 Average Slot Usage (%) 84 | . 83 71 88 93 79 Engine 8 | . 14 14 14 12 2 Core 2 | . . . . . 5 Treads 6 | . 14 14 14 4 . Leg 6 | . . . . . 15 Wheel 9 | . 14 14 14 21 1 Flight 3 | . . . . . 6 Device 2 | . . . . . 6 Storage 17 | . 14 14 24 28 11 Processor 6 | . . . . . 15 Energy Gun 8 | . 26 14 14 6 1 Energy Cannon 2 | . . . 6 4 . Ballistic Gun 8 | . . . . 14 14 Naked Turns . | . . . . . . Heaviest Build 29 | 13 13 11 29 29 28 Greatest Support 45 | 10 10 10 10 20 45 Greatest Overweight (x) 5 | 1 1 1 2 5 4 Average Overweight (x) . | 1 1 1 1 . . Largest Inventory Capacity 10 | 6 6 6 10 10 10 Average Capacity 8 | 6 6 6 8 10 8 Most Carried 10 | 6 6 6 7 8 10 Average Carried 6 | 5 5 6 6 5 6 Final Capacity 10 | 6 6 6 10 10 8 Final Carried 6 | 4 6 6 6 4 2 Class Distribution -------------------- 100% | Mutant Dominant Class ---------------- Mutant | -10/Materials Mutant | -10/Mines Mutant | -10/Exiles Mutant | -9/Mines Mutant | -8/Materials Resources | -11 -10 -10 -10 -9 -8 ----------- Run | Scr Mat Min Exi Min Mat Matter Collected 614 | 208 12 . . 79 315 Remotely . | . . . . . . Salvage Created 947 | . 178 . . 136 633 Parts 57 | . 8 . . 18 31 Haulers Intercepted . | . . . . . . Recyclers Shooed 1 | . 1 . . . . Parts Field Recycled . | . . . . . . Retrieved Matter . | . . . . . . Parts Self-Destructed . | . . . . . . Prevented . | . . . . . . Kills | -11 -10 -10 -10 -9 -8 ------- Run | Scr Mat Min Exi Min Mat Combat Hostiles Destroyed 23 | . 4 . . 5 14 Guns 18 | . 3 . . 4 11 AOE 3 | . . . . 1 2 Classes Destroyed 9 | . 1 . . 3 5 Tunneler 1 | . . . . 1 . Watcher 1 | . . . . . 1 Swarmer 8 | . . . . 5 3 Grunt 11 | . 4 . . . 7 Brawler 1 | . . . . . 1 Duelist 1 | . . . . . 1 Sentry 1 | . . . . . 1 Hunter 1 | . . . . . 1 Zionite 2 | . . . . 2 . Best Kill Streak 7 | . 3 . . 3 7 Combat Bots Only 6 | . 3 . . 3 6 Max Kills in Single Turn 3 | . 1 . . 3 3 Gunslinging . | . . . . . . Exploded 2 | . . . . 1 2 Melee . | . . . . . . Uniques/NPCs Destroyed . | . . . . . . Combat | -11 -10 -10 -10 -9 -8 -------- Run | Scr Mat Min Exi Min Mat Damage Taken 2713 | . 171 . . 541 2001 Core 664 | . 40 . . 72 552 Absorbed by Shields . | . . . . . . Core Remaining (%) 77 | 100 . . . 55 . Volleys Fired 86 | . 13 . . 18 55 Largest 2 | . 2 . . 2 2 Hottest 110 | . 100 . . 110 76 Shots Fired 130 | . 24 . . 25 81 Gun 127 | . 24 . . 23 80 Cannon 3 | . . . . 2 1 Launcher . | . . . . . . Special . | . . . . . . Kinetic 72 | . . . . 11 61 Thermal 55 | . 24 . . 12 19 Explosive . | . . . . . . Electromagnetic 3 | . . . . 2 1 Robot Hit Streak 12 | . 12 . . 6 11 Robot Miss Streak 5 | . 1 . . 2 5 Penetration Max . | . . . . . . Secondary Targets 1 | . . . . . 1 Max Gunslinging Chain 1 | . . . . . 1 Shots Hit Robots 95 | . 21 . . 13 61 Core Hits 50 | . 7 . . 13 30 Critical Hits . | . . . . . . Critical Kills . | . . . . . . Critical Parts Destroyed . | . . . . . . Melee Attacks . | . . . . . . Impact . | . . . . . . Slashing . | . . . . . . Piercing . | . . . . . . Sneak Attacks . | . . . . . . Combat Hostiles . | . . . . . . Follow-up Attacks . | . . . . . . Damage Inflicted 2089 | . 252 . . 394 1443 Guns 1224 | . 252 . . 180 792 Cannons 14 | . . . . 14 . Explosions 842 | . . . . 192 650 Melee . | . . . . . . Ramming 9 | . . . . 8 1 Kinetic 555 | . . . . 56 499 Thermal 669 | . 252 . . 124 293 Explosive . | . . . . . . Electromagnetic 856 | . . . . 206 650 Impact . | . . . . . . Slashing . | . . . . . . Piercing . | . . . . . . Highest Corruption 4 | . . . . 4 3 Average Corruption 2 | . . . . 1 3 Corruption Purged . | . . . . . . Effects 4 | . . . . . 4 Message Errors 1 | . . . . . 1 Matter Fused 1 | . . . . . 1 Heat Flow Errors 1 | . . . . . 1 Energy Discharges 1 | . . . . . 1 Overload Shots . | . . . . . . Overflow Damage 38 | . . . . 6 32 Projectiles . | . . . . . . Explosions 38 | . . . . 6 32 Melee . | . . . . . . Knockbacks . | . . . . . . Impact . | . . . . . . Kinetic . | . . . . . . Secondary . | . . . . . . Self-Inflicted Damage 138 | . . . . 44 94 Shots 2 | . . . . 1 1 Rammed 2 | . . . . 1 1 Targets Rammed 2 | . . . . 1 1 Kicked . | . . . . . . Crushed . | . . . . . . Highest Temperature 273 | . 273 . . 48 219 Average Temperature 73 | . 111 . . 25 64 Received Heat Transfer 750 | . 93 . . . 657 Siege Activations . | . . . . . . Robots Corrupted . | . . . . . . Combat Hostiles . | . . . . . . Parts Fried 1 | . . . . . 1 Impact Corruptions . | . . . . . . Robots Melted 2 | . 1 . . . 1 Combat Hostiles 2 | . 1 . . . 1 Parts Melted 6 | . 3 . . 2 1 Heat Transferred 1739 | . 740 . . 370 629 Parts Sabotaged . | . . . . . . Parts Stolen . | . . . . . . Parts Stripped . | . . . . . . Power Chain Reactions . | . . . . . . Missiles Intercepted . | . . . . . . Latent Energy Used 343 | . . . . 143 200 LE Corruption 6 | . . . . 3 3 Alert | -11 -10 -10 -10 -9 -8 ------- Run | Scr Mat Min Exi Min Mat Peak Influence 238 | . 190 73 . 146 238 Average Influence 102 | . 73 73 . 40 140 Maximum Alert Level 1 | . . . . . 1 Low Security (%) 89 | 100 100 100 . 100 81 Level 1 10 | . . . . . 18 Level 2 . | . . . . . . Level 3 . | . . . . . . Level 4 . | . . . . . . Level 5 . | . . . . . . High Security . | . . . . . . Max Security . | . . . . . . Squads Dispatched 8 | . 3 . . . 5 Investigation 3 | . 2 . . . 1 Extermination . | . . . . . . Reinforcement 2 | . 1 . . . 1 Assault . | . . . . . . Garrison 3 | . . . . . 3 Intercept . | . . . . . . Construction Impeded 1 | . . . . . 1 Haulers Reinforced . | . . . . . . Stealth | -11 -10 -10 -10 -9 -8 --------- Run | Scr Mat Min Exi Min Mat Distress Signals 2 | . 1 . . . 1 Communications Jammed . | . . . . . . Distress Signals . | . . . . . . Times Spotted 43 | . 8 . . 8 27 Peak Tracking Total 8 | . 4 . . 3 8 Tactical Retreats 4 | . 1 . . . 3 Traps | -11 -10 -10 -10 -9 -8 ------- Run | Scr Mat Min Exi Min Mat Traps Triggered 1 | . . . . . 1 Indirectly . | . . . . . . Trap Hack Attempts . | . . . . . . Triggered . | . . . . . . Disarmed . | . . . . . . Reprogrammed . | . . . . . . Reused . | . . . . . . Traps Extracted . | . . . . . . Installed . | . . . . . . Triggered . | . . . . . . Exploded 1 | . . . 1 . . Machines | -11 -10 -10 -10 -9 -8 ---------- Run | Scr Mat Min Exi Min Mat Machines Disabled 2 | . . . . 1 1 Max in Single Turn 1 | . . . . . 1 Machines Sabotaged . | . . . . . . Garrisons Compromised . | . . . . . . Overloaded Fab Kills . | . . . . . . Fab Network Shutdowns . | . . . . . . Hacking | -11 -10 -10 -10 -9 -8 --------- Run | Scr Mat Min Exi Min Mat Machines Accessed 5 | . 3 . 1 . 1 Terminals 2 | . 2 . . . . Fabricators . | . . . . . . Repair Stations . | . . . . . . Recycling Units 1 | . 1 . . . . Scanalyzers 1 | . . . . . 1 Garrison Access . | . . . . . . Total Hacks 12 | . 9 . 1 . 2 Successful 7 | . 4 . 1 . 2 Failed 5 | . 5 . . . . Catastrophic . | . . . . . . Database Lockouts . | . . . . . . Manual 10 | . 9 . 1 . . Terminals 8 | . 8 . . . . Fabricators . | . . . . . . Repair Stations . | . . . . . . Recycling Units 1 | . 1 . . . . Scanalyzers 2 | . . . . . 2 Garrison Access . | . . . . . . Terminal Hacks 1 | . . . 1 . . EX-Prototype ID Bank 1 | . . . 1 . . Fabricator Hacks . | . . . . . . Repair Station Hacks . | . . . . . . Recycling Unit Hacks . | . . . . . . Scanalyzer 2 | . . . . . 2 Insert Component 2 | . . . . . 2 Garrison Access Hacks . | . . . . . . Unauthorized Hacks 4 | . 4 . . . . Terminals 3 | . 3 . . . . Botnet 2 | . 2 . . . . Operators 1 | . 1 . . . . Fabricators . | . . . . . . Repair Stations . | . . . . . . Recycling Units 1 | . 1 . . . . Tunnel 1 | . 1 . . . . Scanalyzers . | . . . . . . Garrison Access . | . . . . . . Data Cores Recovered . | . . . . . . Used . | . . . . . . Hacking Detections 2 | . 2 . . . . Full Trace Events 2 | . 2 . . . . Feedback Events . | . . . . . . Feedback Blocked . | . . . . . . Robot Schematics Acquired . | . . . . . . Robots Built . | . . . . . . Matter . | . . . . . . Time . | . . . . . . Total Robot Build Rating . | . . . . . . Part Schematics Acquired . | . . . . . . Parts Built . | . . . . . . Matter . | . . . . . . Time . | . . . . . . Total Part Build Rating . | . . . . . . Parts Repaired . | . . . . . . Time . | . . . . . . Parts Recycled . | . . . . . . Recycled Matter . | . . . . . . Retrieved Matter . | . . . . . . Retrieved Components . | . . . . . . Parts Scanalyzed . | . . . . . . Part Schematics Acquired . | . . . . . . Parts Damaged . | . . . . . . Bothacking | -11 -10 -10 -10 -9 -8 ------------ Run | Scr Mat Min Exi Min Mat Used RIF Installer . | . . . . . . Robots Hacked . | . . . . . . Non-combat . | . . . . . . Combat . | . . . . . . Robot Hacks Applied . | . . . . . . Relay Couplers Released . | . . . . . . Robots Rewired . | . . . . . . Allies Hacked . | . . . . . . Hacks Repelled . | . . . . . . Allies | -11 -10 -10 -10 -9 -8 -------- Run | Scr Mat Min Exi Min Mat Total Allies 2 | . . . . 2 . Largest Group 2 | . . . . 2 1 Highest-Rated Group 49 | . . . . 49 31 Highest-Rated Ally 31 | . . . . 31 31 Total Orders . | . . . . . . Ally Attacks 10 | . . . . 7 3 Total Damage 128 | . . . . 86 42 Kills 2 | . . . . 2 . Allies Corrupted . | . . . . . . Allies Melted . | . . . . . . Intel | -11 -10 -10 -10 -9 -8 ------- Run | Scr Mat Min Exi Min Mat Robot Analysis Total . | . . . . . . Derelict Logs Recovered . | . . . . . . Drone Launches . | . . . . . . Drone Recoveries . | . . . . . . Exploration | -11 -10 -10 -10 -9 -8 ------------- Run | Scr Mat Min Exi Min Mat Turns Passed 1326 | 4 159 28 299 264 572 Spaces Moved 993 | 1 121 32 314 182 343 Core 9 | . . . . 2 7 Treads 1 | . . . . 1 . Legs 144 | . . . . . 144 Wheels 678 | 1 121 32 314 179 31 Hover . | . . . . . . Flight 161 | . . . . . 161 Fastest Speed 34 | 90 90 90 90 80 34 Average Speed 87 | 90 90 90 94 89 79 Slowest Speed 300 | 90 90 90 100 300 250 Overloaded Moves . | . . . . . . Propulsion Burnouts . | . . . . . . Robots Hopped . | . . . . . . Cave-ins Triggered 1 | . . . . 1 . Exploration Rate (%) 29 | 2 37 12 67 36 25 Regions Visited 5 Branch Regions 3 Pre-discovered Areas 1 | . 1 . . . . Known Exits Taken . | . . . . . . Unknown Exits Taken 5 | 1 1 1 1 1 . Scrap Searched . | . . . . . . Spaces Dug . | . . . . . . Terrain Destroyed 21 | . . . . 8 13 Melee . | . . . . . . Projectile . | . . . . . . AOE 21 | . . . . 8 13 Actions | -11 -10 -10 -10 -9 -8 --------- Run | Scr Mat Min Exi Min Mat Total 1328 | 4 146 31 316 259 572 Wait 150 | . 11 . . 44 95 Move 988 | . 120 31 313 181 343 Hop . | . . . . . . Pick Up 34 | . 2 . 1 4 27 Fast Attach 7 | . . . 1 . 6 Attach 16 | . . . 1 7 8 Detach 1 | . . . . 1 . Swap 16 | 2 . . . 2 12 Drop 28 | 2 . . . 1 25 Fire 86 | . 13 . . 18 55 Melee . | . . . . . . Ram 1 | . . . . 1 . Kick 1 | . . . . . 1 Crush . | . . . . . . Escape Stasis . | . . . . . . Rewire . | . . . . . . Trap . | . . . . . . Miscellaneous . | . . . . . . Route ------- -11/Scrapyard -10/Materials -10/Mines -10/Exiles (discovered 2 exits: [*Min x2]) -9/Mines -8/Materials History --------- Turn | Location | Event 5 | -11/Scrapyard | Discovered new exit (range 0) 5 | -11/Scrapyard | Entered Materials 70 | -10/Materials | Discovered new exit (range 12) 164 | -10/Materials | Entered Mines 188 | -10/Mines | Deemed a non-threat by the Exiles lab entrance 189 | -10/Mines | Discovered new exit (range 5) 192 | -10/Mines | Entered Exiles 206 | -10/Exiles | Discovered new exit (range 15) 220 | -10/Exiles | Met 8R-AWN 233 | -10/Exiles | Met EX-HEX 308 | -10/Exiles | Met EX-BIN 315 | -10/Exiles | Build established: Mutant 321 | -10/Exiles | Aligned with FarCom system 322 | -10/Exiles | Given EX-Vault access code 343 | -10/Exiles | Opened EX-Vault 349 | -10/Exiles | Found Latent Energy Streamer 371 | -10/Exiles | Warned to stay clear of 0b10 Research branches 385 | -10/Exiles | Exiles lab attacked by MAIN.C 479 | -10/Exiles | Discovered new exit (range 14) 491 | -10/Exiles | Left Exiles lab with Latent Energy Streamer 491 | -10/Exiles | Entered Mines 620 | -9/Mines | Lost 3 parts (1p2n) 725 | -9/Mines | Discovered new exit (range 11) 735 | -9/Mines | Crushed by falling debris 749 | -9/Mines | Assembled infested the area 755 | -9/Mines | Entered Materials 755 | -8/Materials | Accompanied by 1 ally 755 | -8/Materials | Evolved 4 slots: Propulsion x1, Utility x3 763 | -8/Materials | Led the pair of lost Derelicts to an unsafe place 1039 | -8/Materials | Garrison activated, responded to threat 1232 | -8/Materials | Core integrity fell below 50% 1276 | -8/Materials | Core integrity fell below 20% 1282 | -8/Materials | Lost 8 parts (1p4n3w) 1327 | -8/Materials | Destroyed by Y-45 Defender with Heavy Assault Rifle Last Messages --------------- 01251_ Carbon-fiber Leg destroyed. 01252_ System corrupted: Energy discharge (-9). 01257_ R-06 Scavenger collects Aluminum Leg. 01260_ R-06 Scavenger collects Cesium-ion Thruster. 01280_ System corrupted: Heat flow error (+228). 01283_ R-06 Scavenger collects Lgt. Ion Engine. 01286_ R-06 Scavenger collects Lgt. Assault Rifle. 01291_ Acquired Lgt. Assault Rifle. 01303_ G-47 Trooper destroyed. 01305_ Beam Rifle destroyed. 01311_ Lgt. Assault Rifle destroyed. 01311_ Slammed into Y-45 Defender. 01311_ Imp. Aluminum Leg destroyed. 01312_ Acquired 60 matter. 01319_ Identified Imp. VTOL Module. 01319_ Malfunction: Adv. Signal Interpreter damaged (-1). 01324_ System corrupted: Matter fused (-9). 01324_ Lgt. Ion Engine destroyed. 01326_ U-05 Engineer lays Concrete. 01326_ Imp. ECM Suite destroyed. Map ----- +----------------------------------------------------+ | #??????# + #????????? | | #??????# ##+######## # #????????? | | ######## # #?# ##+#############???? | | # """ #?# #???? | | ##### # """ #?# ##+######## #???? | | ????# #[ """ #?# # [ #??# #???? | | ????# # #?# # #??# #???? | | ????# ############?# # """ #??# #???? | | #???# #????????????# # """ #??# #???? | | #???# #????????????? # """ #??# #???? | | #???# #????????????? # #??####+###?? | | #???# #????????????? ########??# #?? | | #???# #????????????? ?########## =]] #?? | | #???# #????????????? ?# # ]] #?? | | #???# ########+##+## ?# %#[!] #?? | | #???# ?# =%+== ! #?? | | #???# ?# ! = #! #?? | | ##### ?# ########?? | | /+ + ########## | | !######### ######## ## # | | " #???????? #??????# ## # | | " #???????#? ######## = ## """# | | #???????# ## ##+####+### """# | | = #???????# ## =# """# | | #???????+ u = /Y # | | ###?????????????# @ Y# """# | | ????????????????# ##+######## """# | | ????????????????### ### ## """# | | ??????????????????# #?# """ ## # | | ??????????????????# #?# """ ## = # | | ??????????????????# #?# """= [ ########## | | ??????????????????# #?# | #????????? | | ??????????????????# ####+##/####????????? | | ??????????????????# + #????????? | | ??????????????????# # = #????????? | | ?????????##+####### # [= "" #????????? | | ???????? #%%%! "" #????????? | | ???????? %+% % "" #????????? | | ???????? # "" #????????? | | ???????????+######### #=== * = #????????? | | ??????????????????# " # != #????????? | | ??????????????????##" # "T" #????????? | | ???????????????????## ##########????????? | | ????????????????????# #####?????????????? | | ????????????????????# #?????????????????? | | ???????????????????? ?????????????????? | | ???????????????????? ?????????????????? | | ??????????????????? ?????????????????? | | ??????????????????? ? ?????????????????? | | ??????????????????? ????????????????????? | +----------------------------------------------------+ Best States ------------- Heat Dissipation 31 Energy Generation 15 Energy Capacity 250 Matter Stores 300 Matter Capacity 300 Sight Range 16 Terrain Scan Density 10 ECM Strength 2 Evasion (%) 63 Recoil Reduction 1 Item Schematics ----------------- None Robot Schematics ------------------ None Fabricated ------------ Nothing Alien Tech Used ----------------- None Achievements -------------- It's Just You Challenges ------------ None Game ------ Seed BiometalRiotGenerator Manual? 0 Play Time 00:22:23 Cumulative 15.9 hours Start 2020.07.26 @ 22:49:02 End 2020.07.26 @ 23:10:35 Sessions 1 Manual Loads 0 Difficulty Rogue Special Mode None Game No. 48 Rogue 48 Adventurer 0 Explorer 0 Win Type - Total 0 Types 0/0/0/0/0/0/0 Lore% 16 Gallery% 23 Achievement% 21 Wizard Run 0 Options --------- ASCII 0 Keyboard 0 Movement Mouse Keybinds 0 Fullscreen 1 Font 18/SmallcapsGlow Map View 76x50 Tactical HUD 1 Map Filters NONE Filters NONE Steam 0 RUN: a2b19aae-ab5d-4e12-a54d-2660fd9cfa76